bitfinex-derivatives/quotes_SOLF0:USTF0_20251224
["timestamp","ask_amount","ask_price","bid_price","bid_amount"]
[1766582274026,101.37994359,122.26,122.21,7.8887]
[1766582275119,0.05260562,122.25,122.22,0.05828136]
[1766582278616,3.48,122.24,122.18,10.69653707]
[1766582278820,96.64,122.26,122.18,0.52]
[1766582278821,4.73994359,122.23,122.18,0.52]
[1766582279625,0.05906625,122.22,122.19,0.05308672]
[1766582279816,4.73994359,122.23,122.19,0.05308672]
[1766582280322,3.48,122.22,122.19,0.00308672]
[1766582280528,3.48,122.2,122.14,12.9684692]
[1766582281022,3.48,122.2,122.15,0.63]
[1766582281223,3.48,122.2,122.15,10.80653707]
[1766582281429,3.48,122.2,122.16,0.05737176]
[1766582281619,0.06123621,122.19,122.16,0.68737176]
[1766582282117,0.06123621,122.19,122.16,8.05907176]
[1766582282711,0.06123621,122.19,122.16,0.68737176]
[1766582282910,0.06123621,122.19,122.16,0.05737176]
[1766582283712,3.36123621,122.19,122.16,0.05737176]
[1766582286427,3.36123621,122.19,122.14,2.16193213]
[1766582287323,3.36123621,122.19,122.15,0.06262848]
[1766582289432,0.06123621,122.19,122.15,0.75262848]
[1766582294540,0.06123621,122.19,122.15,8.12482848]
[1766582301158,0.06123621,122.19,122.16,7.3717]
[1766582306761,0.06123621,122.19,122.15,0.75262848]
[1766582308159,0.06123621,122.19,122.15,8.12492848]
[1766582323565,0.06123621,122.19,122.13,10.17653707]
[1766582323566,1.25994359,122.18,122.1,0.69003707]
[1766582323868,139.198,122.22,122.1,0.69]
[1766582323869,4.70994359,122.17,122.1,0.69]
[1766582324375,4.70994359,122.19,122.13,0.69]
[1766582324671,0.05432174,122.17,122.15,0.06031342]
[1766582325172,0.00432174,122.17,122.15,0.75031342]
[1766582325378,3.45,122.2,122.15,0.75031342]
[1766582326175,107.4986,122.22,122.15,0.75031342]
[1766582326475,0.06071198,122.2,122.15,0.75031342]
[1766582327572,0.06071198,122.2,122.16,0.64]
[1766582329280,0.06071198,122.2,122.17,0.64]
[1766582329487,0.06071198,122.2,122.15,0.06031342]
[1766582330575,0.06071198,122.2,122.15,3.40031342]
[1766582331274,0.06071198,122.2,122.17,3.34]
[1766582331474,0.06071198,122.2,122.15,3.40031342]
[1766582331670,3.51071198,122.2,122.15,3.40031342]
[1766582333075,3.51071198,122.2,122.15,10.77261342]
[1766582336280,3.51071198,122.2,122.16,3.34]
[1766582336473,0.06071198,122.2,122.16,10.7117]
[1766582338283,3.45,122.22,122.17,10.711]
[1766582338485,9.4579221,122.24,122.18,3.34]
[1766582338676,3.45,122.24,122.18,3.34]
[1766582339382,0.05517016,122.22,122.2,0.05901193]
[1766582347088,3.36517016,122.22,122.16,3.3]
[1766582347990,3.36517016,122.22,122.18,0.05171169]
[1766582348582,10.73337016,122.22,122.18,0.05171169]
[1766582348788,0.05517016,122.22,122.18,3.35171169]
[1766582364104,3.31,122.24,122.19,3.3]
[1766582365207,0.057215,122.23,122.19,3.3]
[1766582365391,3.31,122.26,122.2,3.3]
[1766582366003,7.3655,122.27,122.2,3.3]
[1766582366507,0.0589258,122.25,122.22,3.35721858]
[1766582370809,3.31,122.28,122.22,3.35721858]
[1766582371009,3.31,122.28,122.23,3.3]
[1766582371909,0.05766297,122.27,122.23,3.3]
[1766582377708,3.63766297,122.27,122.23,3.3]
[1766582377902,0.05766297,122.27,122.23,3.3]
[1766582378510,0.05766297,122.27,122.23,10.6675]
[1766582379312,0.05766297,122.27,122.23,3.3]
[1766582386926,5.54984264,122.3,122.23,3.3]
[1766582387326,3.58,122.3,122.23,3.3]
[1766582388020,0.05482625,122.28,122.25,3.40898769]
[1766582401342,0.05482625,122.28,122.25,0.05898769]
[1766582401544,4.9940024,122.28,122.23,3.69]
[1766582401744,4.93917615,122.28,122.23,3.69]
[1766582402539,0.05983457,122.27,122.24,0.05291418]
[1766582404154,11.10513457,122.27,122.21,3.69]
[1766582404550,4.93917615,122.26,122.21,3.69]
[1766582405255,4.93917615,122.26,122.22,0.05329062]
[1766582405951,3.68,122.25,122.22,0.05329062]
[1766582406153,3.68,122.25,122.22,0.00329062]
[1766582406653,1.25917615,122.24,122.19,3.69]
[1766582407544,0.0549749,122.23,122.2,0.05799307]
[1766582415855,0.0549749,122.23,122.2,3.74799307]
[1766582417856,97.87917615,122.26,122.2,3.74799307]
[1766582418864,0.06139531,122.24,122.2,3.74799307]
[1766582419250,0.06139531,122.24,122.21,11.0586]
[1766582425057,12.30377615,122.28,122.22,3.69]
[1766582425263,12.30377615,122.28,122.23,3.69]
[1766582426071,0.05866357,122.27,122.24,0.05237464]
[1766582436077,3.90866357,122.27,122.24,0.05237464]
[1766582437979,11.27386357,122.27,122.24,0.05237464]
[1766582466995,3.77,122.26,122.24,0.05237464]
[1766582468093,11.1358,122.26,122.24,0.00237464]
[1766582468999,3.77,122.26,122.24,0.00237464]
[1766582488708,3.77,122.26,122.21,3.85]
[1766582489607,3.77,122.26,122.22,0.06210706]
[1766582494117,3.77,122.26,122.22,11.11020706]
[1766582498730,3.77,122.26,122.22,0.06210706]
[1766582521345,0.05866357,122.27,122.22,11.37020706]
[1766582521641,3.90866357,122.27,122.22,11.37020706]
[1766582522035,3.90866357,122.27,122.22,7.43020706]
[1766582523649,3.90866357,122.27,122.22,4.00210706]
[1766582524546,3.90866357,122.27,122.24,7.3668]
[1766582528153,3.90866357,122.27,122.22,4.00210706]
[1766582529648,3.90866357,122.27,122.23,7.3675]
[1766582530245,3.90866357,122.27,122.22,0.06210706]
[1766582531552,3.90866357,122.27,122.22,7.43020706]
[1766582531755,3.90866357,122.27,122.22,0.06210706]
[1766582537653,3.90866357,122.27,122.22,7.43020706]
[1766582539256,3.90866357,122.27,122.23,7.3675]
[1766582546457,0.05866357,122.27,122.23,11.3075]
[1766582548558,0.05866357,122.27,122.24,7.3669]
[1766582562468,0.05866357,122.27,122.23,3.94]
[1766582563167,3.96866357,122.27,122.22,0.06210706]
[1766582563364,3.91,122.25,122.22,0.06210706]
[1766582567580,3.72,122.2,122.14,3.83]
[1766582568580,0.05852016,122.18,122.16,0.05662905]
[1766582576585,3.96852016,122.18,122.12,7.374]
[1766582576778,3.96852016,122.18,122.12,11.204]
[1766582576978,3.96852016,122.18,122.13,3.83]
[1766582577180,9.33926481,122.22,122.13,3.83]
[1766582577477,1.97066481,122.22,122.13,3.83]
[1766582578288,0.05665526,122.19,122.16,0.06043324]
[1766582579281,3.51665526,122.19,122.16,0.06043324]
[1766582580185,3.51665526,122.19,122.16,0.00043324]
[1766582587593,0.05665526,122.19,122.16,0.00043324]
[1766582594304,4.37665526,122.19,122.16,0.00043324]
[1766582603303,11.74675526,122.19,122.12,11.9242]
[1766582603506,4.32,122.18,122.12,11.9242]
[1766582604302,0.05527839,122.16,122.14,0.05589809]
[1766582610708,4.32,122.19,122.14,4.60589809]
[1766582611911,0.05526547,122.18,122.14,4.60589809]
[1766582612907,0.05526547,122.18,122.14,11.97869809]
[1766582614613,0.05526547,122.18,122.15,6.0]
[1766582617819,11.72667585,122.21,122.15,6.0]
[1766582618015,5.74,122.21,122.16,6.01]
[1766582618913,0.06264417,122.2,122.17,0.06281924]
[1766582619312,0.06264417,122.2,122.17,6.07281924]
[1766582623521,0.06264417,122.2,122.17,0.06281924]
[1766582623821,5.80264417,122.2,122.17,0.06281924]
[1766582649839,5.80264417,122.2,122.13,14.0531]
[1766582650526,5.80264417,122.2,122.15,6.68]
[1766582650730,5.74,122.2,122.15,6.68]
[1766582650929,0.05436275,122.19,122.16,0.06160392]
[1766582651937,7.15436275,122.19,122.16,0.06160392]
[1766582653627,7.15436275,122.19,122.16,0.00160392]
[1766582653936,8.41530003,122.19,122.13,6.68]
[1766582654527,7.1,122.18,122.13,6.68]
[1766582654730,7.1,122.18,122.14,0.05225652]
[1766582660534,0.05436275,122.19,122.14,6.73225652]
[1766582660846,7.15436275,122.19,122.14,6.73225652]
[1766582661542,7.15436275,122.19,122.14,14.10515652]
[1766582664048,0.05436275,122.19,122.15,14.0523]
[1766582664743,0.05436275,122.19,122.16,6.68]
[1766582665247,0.05436275,122.19,122.16,14.0515]
[1766582671755,7.1,122.21,122.16,14.0515]
[1766582672855,0.05753153,122.2,122.17,0.05828977]
[1766582681061,0.05753153,122.2,122.17,15.25928977]
[1766582700779,0.05753153,122.2,122.17,7.88828977]
[1766582704771,7.80753153,122.2,122.17,0.05828977]
[1766582707078,0.05753153,122.2,122.17,0.05828977]
[1766582716785,0.05753153,122.2,122.17,8.06828977]
[1766582719489,0.05753153,122.2,122.17,15.43938977]
[1766582729692,0.05753153,122.2,122.17,8.06828977]
[1766582753411,8.43753153,122.2,122.15,15.9023]
[1766582753611,8.38,122.2,122.15,15.9023]
[1766582754013,9.64112027,122.2,122.15,15.9023]
[1766582754402,0.05697556,122.19,122.16,0.05866529]
[1766582760217,0.05697556,122.19,122.16,8.58866529]
[1766582767123,9.51112027,122.22,122.17,8.79]
[1766582768022,0.05279946,122.21,122.17,8.79]
[1766582775224,1.31391973,122.21,122.17,8.79]
[1766582775931,9.56391973,122.21,122.17,8.79]
[1766582778030,16.93271973,122.21,122.16,0.05866529]
[1766582778327,9.51112027,122.19,122.13,8.79]
[1766582779141,0.06109531,122.17,122.15,0.0552521]
[1766582781734,9.57221558,122.17,122.12,8.79]
[1766582782631,16.94361558,122.17,122.12,8.79]
[1766582782832,16.94361558,122.17,122.13,0.05937428]
[1766582788842,15.6219,122.16,122.13,0.05937428]
[1766582789043,15.6219,122.16,122.1,8.79]
[1766582789340,9.51112027,122.15,122.1,8.79]
[1766582790237,0.06111549,122.14,122.11,0.06081209]
[1766582799952,8.50111549,122.14,122.11,0.06081209]
[1766582803948,0.06111549,122.14,122.11,8.28081209]
[1766582804155,0.00111549,122.14,122.11,8.28081209]
[1766582805147,0.00111549,122.14,122.11,124.63651209]
[1766582805348,8.44,122.22,122.14,8.22]
[1766582805659,114.5888,122.25,122.15,8.22]
[1766582805660,105.16,122.24,122.15,8.22]
[1766582806252,0.05630451,122.21,122.18,8.27875817]
[1766582809256,0.05630451,122.21,122.18,0.05875817]
[1766582809458,8.49630451,122.21,122.18,0.05875817]
[1766582812365,8.49630451,122.21,122.14,104.94]
[1766582812558,8.49630451,122.21,122.15,8.22]
[1766582813453,8.49630451,122.21,122.17,0.05458428]
[1766582819773,15.86510451,122.21,122.17,0.05458428]
[1766582821068,8.44,122.2,122.17,0.05458428]
[1766582825876,7.42510451,122.21,122.17,0.05458428]
[1766582826476,16.37510451,122.21,122.17,0.05458428]
[1766582826975,8.95,122.2,122.17,0.05458428]
[1766582832181,8.95,122.19,122.14,96.72]
[1766582832478,8.95,122.19,122.13,8.72]
[1766582833170,0.05275908,122.17,122.15,0.05862909]
[1766582857993,8.71275908,122.17,122.15,0.05862909]
[1766582859397,16.08405908,122.17,122.15,0.05862909]
[1766582867798,16.08405908,122.17,122.11,16.1048]
[1766582867998,9.02,122.16,122.11,16.1048]
[1766582868497,9.02,122.16,122.12,8.73]
[1766582869796,7.42405908,122.17,122.12,8.73]
[1766582876105,16.44405908,122.17,122.12,8.73]
[1766582878217,9.07275908,122.17,122.12,16.1042]
[1766582878410,9.07275908,122.17,122.12,8.73]
[1766582880315,9.07275908,122.17,122.11,7.3748]
[1766582880316,10.33424348,122.17,122.1,105.41]
[1766582880517,10.33424348,122.17,122.1,8.73]
[1766582881417,7.3719,122.16,122.1,16.1053]
[1766582881617,0.06058173,122.14,122.11,8.33]
[1766582885518,0.06058173,122.14,122.11,15.7048]
[1766582890624,10.2814844,122.17,122.12,8.33]
[1766582891622,0.05472072,122.16,122.12,8.33]
[1766582894322,0.05472072,122.16,122.13,8.33]
[1766582895317,0.05472072,122.16,122.13,15.7035]
[1766582895723,106.6614844,122.19,122.13,15.7035]
[1766582896925,0.05423858,122.17,122.15,0.05514977]
[1766582897424,15.97534821,122.21,122.15,8.38514977]
[1766582897615,8.7,122.23,122.15,8.38514977]
[1766582897820,8.7,122.23,122.15,8.33]
[1766582898518,0.05234552,122.2,122.18,0.05433999]
[1766582898724,8.7,122.23,122.18,8.38433999]
[1766582899628,0.06078001,122.22,122.18,15.75473999]
[1766582905423,0.06078001,122.22,122.18,8.38433999]
[1766582917042,17.58056441,122.22,122.16,8.45]
[1766582917238,8.89,122.21,122.16,8.45]
[1766582918137,8.89,122.21,122.17,0.05939094]
[1766582933052,1.32226441,122.22,122.17,8.50939094]
[1766582933253,0.06078001,122.22,122.17,8.50939094]
[1766582934560,0.06078001,122.22,122.17,15.88049094]
[1766582934965,0.06078001,122.22,122.18,8.45]
[1766582938261,0.00078001,122.22,122.19,8.45]
[1766582939357,0.00078001,122.22,122.2,8.45]
[1766582939563,0.00078001,122.22,122.2,8.50384063]
[1766582959381,0.00078001,122.22,122.2,15.87314063]
[1766582980899,0.00078001,122.22,122.2,8.50384063]
[1766582983204,8.64,122.25,122.2,8.50384063]
[1766582984211,0.05721711,122.24,122.2,8.50384063]
[1766582997317,7.3657,122.26,122.21,9.03]
[1766582997712,15.9657,122.26,122.21,9.03]
[1766582998218,0.05313007,122.25,122.21,9.03]
[1766583002023,7.41953007,122.25,122.21,9.03]
[1766583015229,0.05313007,122.25,122.21,9.03]
[1766583015429,0.00313007,122.25,122.21,9.03]
[1766583031235,8.79313007,122.25,122.2,0.05384063]
[1766583031636,8.79313007,122.25,122.2,8.58384063]
[1766583032238,0.00313007,122.25,122.2,8.58384063]
[1766583049447,0.00313007,122.25,122.21,8.81]
[1766583050549,0.00313007,122.25,122.22,8.81]
[1766583051552,0.00313007,122.25,122.23,8.81]
[1766583051858,0.00313007,122.25,122.23,8.86547427]
[1766583056554,0.00313007,122.25,122.23,0.05547427]
[1766583058649,0.00313007,122.25,122.23,8.86547427]
[1766583066252,0.00313007,122.25,122.23,7.42287427]
[1766583066454,0.00313007,122.25,122.24,8.67]
[1766583066759,7.3626,122.32,122.26,8.67]
[1766583066956,1.96815236,122.34,122.26,8.67]
[1766583066957,8.65,122.33,122.26,8.67]
[1766583067558,0.05176363,122.31,122.28,8.72424021]
[1766583071663,0.00176363,122.31,122.28,8.72424021]
[1766583073660,0.00176363,122.31,122.29,8.67]
[1766583083572,0.00176363,122.31,122.29,16.0339]
[1766583083775,0.00176363,122.31,122.3,8.67]
[1766583090667,8.65,122.4,122.33,8.67]
[1766583090968,8.65,122.4,122.34,8.67]
[1766583091664,0.05396347,122.38,122.36,0.05275895]
[1766583097372,8.65,122.4,122.36,0.05275895]
[1766583098571,0.05757828,122.39,122.36,0.05275895]
[1766583100974,8.30757828,122.39,122.33,7.97]
[1766583101179,8.30757828,122.39,122.31,104.51]
[1766583101385,8.25,122.37,122.28,7.97]
[1766583101575,8.25,122.37,122.29,7.97]
[1766583102075,8.25,122.37,122.27,7.97]
[1766583102076,8.30212637,122.34,122.27,7.97]
[1766583102389,10.27027873,122.34,122.27,7.97]
[1766583102772,10.27027873,122.34,122.27,15.335]
[1766583103080,8.30212637,122.34,122.29,0.05264909]
[1766583109386,8.30212637,122.34,122.29,8.02264909]
[1766583110377,15.66312637,122.34,122.29,0.05264909]
[1766583110683,8.25,122.33,122.29,0.05264909]
[1766583111581,8.25,122.32,122.25,15.3362]
[1766583111780,8.25,122.32,122.26,7.97]
[1766583112572,0.05674067,122.3,122.28,0.05939136]
[1766583117779,8.30674067,122.3,122.24,111.8767]
[1766583118785,8.30674067,122.3,122.26,0.05977807]
[1766583123793,15.67024067,122.3,122.26,0.05977807]
[1766583123990,7.95,122.29,122.26,0.05977807]
[1766583124389,7.95,122.28,122.23,7.97]
[1766583125395,8.00241156,122.27,122.24,0.05515168]
[1766583136002,0.05241156,122.27,122.24,0.05515168]
[1766583144105,0.05241156,122.27,122.24,15.30195168]
[1766583148711,0.05241156,122.27,122.24,7.93515168]
[1766583149907,0.05241156,122.27,122.24,0.05515168]
[1766583150108,9.26149574,122.27,122.2,15.2489]
[1766583150609,9.20908418,122.25,122.18,7.88]
[1766583151013,9.20908418,122.23,122.18,7.88]
[1766583151209,0.05509011,122.22,122.19,0.05159819]
[1766583151512,8.01509011,122.22,122.19,0.05159819]
[1766583153314,9.21908418,122.21,122.16,7.65]
[1766583153506,9.21908418,122.21,122.15,2.76473986]
[1766583153813,9.21908418,122.21,122.15,10.41473986]
[1766583154327,0.05391106,122.19,122.17,0.0546988]
[1766583155414,0.00391106,122.19,122.17,7.7046988]
[1766583158519,0.00391106,122.19,122.17,0.0546988]
[1766583162724,0.00391106,122.19,122.15,7.43]
[1766583163722,0.00391106,122.19,122.16,0.05]
[1766583164619,8.07391106,122.19,122.13,111.4234]
[1766583165321,8.07,122.18,122.13,104.05]
[1766583166512,8.07,122.18,122.13,7.43]
[1766583168123,8.07,122.17,122.11,7.43]
[1766583168324,0.06082982,122.15,122.11,7.43]
[1766583170921,0.00082982,122.15,122.11,7.43]
[1766583171725,0.00082982,122.15,122.13,7.43]
[1766583172022,0.00082982,122.15,122.13,7.49]
[1766583172217,0.00082982,122.15,122.13,0.06]
[1766583176527,0.00082982,122.15,122.11,7.43]
[1766583176923,8.07082982,122.15,122.1,7.43]
[1766583177118,8.07082982,122.15,122.07,212.69358418]
[1766583177119,8.07082982,122.15,122.07,96.68]
[1766583177329,9.32908418,122.12,122.06,12.36593812]
[1766583177525,9.38443724,122.12,122.06,12.36593812]
[1766583177822,9.32908418,122.11,122.06,4.93593812]
[1766583178220,16.70408418,122.11,122.06,4.93593812]
[1766583180631,0.05535306,122.12,122.07,7.43]
[1766583186630,7.82,122.11,122.01,7.94]
[1766583186836,0.06240925,122.07,122.01,7.94]
[1766583188134,7.88240925,122.07,122.01,7.94]
[1766583189131,0.06240925,122.07,122.01,7.94]
[1766583190328,7.88240925,122.07,122.01,7.94]
[1766583192338,0.06240925,122.07,122.02,7.94]
[1766583192839,0.06240925,122.07,122.03,15.3194]
[1766583194236,0.06240925,122.07,121.98,211.5591]
[1766583194237,7.88240925,122.07,121.98,7.94]
[1766583194538,7.88240925,122.07,121.95,114.8615]
[1766583194539,7.82,122.02,121.95,7.94]
[1766583194732,0.06259007,122.0,121.95,7.94]
[1766583195240,7.88259007,122.0,121.93,7.94]
[1766583195431,0.05469189,121.98,121.93,7.94]
[1766583195733,7.82,122.03,121.94,7.94]
[1766583195934,7.82,122.03,121.94,15.3245]
[1766583196138,7.82,122.02,121.91,114.9005]
[1766583196331,7.82,121.99,121.91,7.94]
[1766583196632,104.58,121.98,121.91,7.94]
[1766583196844,0.0604071,121.96,121.93,0.05469189]
[1766583197840,7.8804071,121.96,121.89,7.94]
[1766583198033,7.8804071,121.96,121.85,114.9596]
[1766583198236,7.82,121.95,121.87,7.389]
[1766583198438,104.6,121.95,121.88,7.94]
[1766583198841,0.06031642,121.93,121.88,7.94]
[1766583199645,106.57290449,122.0,121.91,7.94]
[1766583199835,7.82,121.99,121.91,7.94]
[1766583200335,7.82,121.98,121.9,7.94]
[1766583200532,7.82,122.01,121.94,7.94]
[1766583201740,0.0557989,121.99,121.96,0.06044837]
[1766583204343,7.8757989,121.99,121.91,7.94]
[1766583204546,7.82,121.99,121.91,7.94]
[1766583205139,7.82,121.97,121.89,7.94]
[1766583205342,0.06053654,121.94,121.92,0.06222625]
[1766583206643,7.88053654,121.94,121.87,7.94]
[1766583206836,0.06053654,121.94,121.88,7.94]
[1766583207345,0.00053654,121.94,121.9,7.94]
[1766583207846,96.82,121.97,121.9,7.94]
[1766583208541,7.82,121.99,121.92,7.94]
[1766583208741,7.82,121.96,121.86,7.94]
[1766583208940,0.05806098,121.92,121.86,7.94]
[1766583209251,0.05806098,121.92,121.86,15.3295]
[1766583209746,96.84,121.95,121.87,7.94]
[1766583210058,73.4423,121.95,121.89,7.94]
[1766583210345,122.6452,122.0,121.9,96.84]
[1766583210648,7.82,121.99,121.9,96.84]
[1766583210843,0.0572006,121.96,121.93,0.06188775]
[1766583214049,7.2272006,121.96,121.88,7.3883]
[1766583214245,7.17,121.96,121.88,104.2283]
[1766583215046,0.05453202,121.93,121.88,104.2283]
[1766583215351,0.05453202,121.93,121.89,7.3879]
[1766583215751,0.05453202,121.93,121.88,96.84]
[1766583216451,0.05453202,121.93,121.86,114.9529]
[1766583216752,0.05453202,121.93,121.87,104.2488]
[1766583217955,12.38033202,121.93,121.85,7.39]
[1766583218250,0.05887787,121.9,121.85,104.25]
[1766583220250,0.05887787,121.9,121.86,7.3897]
[1766583220453,12.3249,121.95,121.85,211.8172]
[1766583220853,4.94,121.94,121.85,211.8172]
[1766583221353,4.94,121.94,121.88,7.3885]
[1766583221555,0.06199957,121.92,121.9,0.05317668]
[1766583223455,0.00199957,121.92,121.9,0.05317668]
[1766583224655,0.00199957,121.92,121.9,7.44057668]
[1766583224858,0.00199957,121.92,121.9,0.05317668]
[1766583228060,0.00199957,121.92,121.9,7.44047668]
[1766583230552,0.00199957,121.92,121.9,9.08047668]
[1766583231463,0.00199957,121.92,121.9,7.44047668]
[1766583234961,7.3813,122.01,121.9,7.44047668]
[1766583234962,7.3813,122.01,121.91,114.9077]
[1766583235156,7.3813,122.01,121.92,96.86]
[1766583235864,4.94,122.02,121.95,0.05710332]
[1766583236064,4.94,122.02,121.96,96.86]
[1766583236885,12.3204,122.02,121.96,96.86]
[1766583237070,0.05277401,122.0,121.98,0.06089301]
[1766583240467,4.99277401,122.0,121.96,96.86]
[1766583240665,4.99277401,122.0,121.96,82.51509474]
[1766583240970,4.99277401,122.0,121.92,96.86]
[1766583241162,4.94,122.0,121.92,96.86]
[1766583241564,4.94,122.0,121.95,0.06271081]
[1766583241565,0.05891516,121.97,121.95,0.06271081]
[1766583243672,0.05891516,121.97,121.91,96.84]
[1766583243874,10.7029,121.98,121.91,96.84]
[1766583244383,3.32,121.98,121.91,96.84]
[1766583244570,3.32,121.98,121.93,0.04941972]
[1766583244769,0.06183905,121.96,121.93,0.04941972]
[1766583247379,7.44583905,121.96,121.93,0.04941972]
[1766583248079,10.76583905,121.96,121.93,0.04941972]
[1766583248777,10.7046,121.95,121.89,96.86]
[1766583248974,3.32,121.95,121.89,96.86]
[1766583249369,10.7059,121.93,121.89,96.86]
[1766583249573,3.32,121.93,121.85,96.86]
[1766583249772,0.05257295,121.9,121.85,96.86]
[1766583250776,0.05257295,121.9,121.85,104.2504]
[1766583251890,0.05257295,121.9,121.85,96.86]
[1766583256788,3.37257295,121.9,121.85,96.86]
[1766583258183,3.32,121.89,121.83,96.88]
[1766583258488,0.05872832,121.87,121.83,96.88]
[1766583259075,0.05872832,121.87,121.83,104.2716]
[1766583260584,0.05872832,121.87,121.83,96.88]
[1766583272996,3.52872832,121.87,121.78,1.26750225]
[1766583273294,0.05301309,121.84,121.79,96.92]
[1766583275595,7.3898,121.87,121.79,98.18750225]
[1766583276196,7.3898,121.87,121.79,7.3939]
[1766583276399,7.3898,121.87,121.8,96.92]
[1766583276596,0.0597079,121.85,121.82,0.05473982]
[1766583279200,7.4503079,121.85,121.82,0.05473982]
[1766583279503,0.0597079,121.85,121.82,0.05473982]
[1766583290515,3.22,121.89,121.82,0.05473982]
[1766583290812,3.22,121.91,121.83,116.24700225]
[1766583291014,3.22,121.91,121.83,1.26750225]
[1766583291208,3.22,121.89,121.83,7.3912]
[1766583291720,0.05684184,121.87,121.85,0.05777564]
[1766583292710,3.27684184,121.87,121.81,7.3926]
[1766583292911,3.22,121.87,121.81,7.3926]
[1766583293112,10.6082,121.89,121.82,7.3923]
[1766583293609,0.06256431,121.87,121.84,0.05667208]
[1766583301720,3.62256431,121.87,121.84,0.05667208]
[1766583303426,0.06256431,121.87,121.84,0.05667208]
[1766583304733,3.56,121.89,121.84,7.44767208]
[1766583305327,10.9469,121.91,121.84,7.44767208]
[1766583305526,3.56,121.9,121.84,7.44767208]
[1766583305735,0.05928371,121.88,121.84,7.44767208]
[1766583306135,0.05928371,121.88,121.84,0.05667208]
[1766583309343,0.05928371,121.88,121.84,7.44777208]
[1766583310042,3.61928371,121.88,121.84,7.44777208]
[1766583317938,3.61928371,121.88,121.84,0.05667208]
[1766583318937,3.61928371,121.88,121.83,7.3917]
[1766583319141,3.61928371,121.88,121.81,96.92]
[1766583319948,3.61928371,121.88,121.83,7.45230081]
[1766583322444,3.57469539,121.88,121.83,7.45230081]
[1766583323141,3.57469539,121.88,121.83,0.06070081]
[1766583327946,3.56,121.87,121.83,0.06070081]
[1766583330152,3.56,121.87,121.8,96.92]
[1766583331246,0.06161344,121.85,121.82,0.04645182]
[1766583332654,3.53161344,121.85,121.79,7.3938]
[1766583335757,3.53161344,121.85,121.8,7.3935]
[1766583335955,0.05618727,121.84,121.8,7.3935]
[1766583337654,3.33618727,121.84,121.8,7.3935]
[1766583339854,3.33618727,121.84,121.78,7.3942]
[1766583340254,3.33618727,121.84,121.74,20.24272978]
[1766583340559,3.33618727,121.84,121.74,4.99147849]
[1766583340560,3.33625882,121.8,121.74,4.99147849]
[1766583340757,3.33625882,121.8,121.74,101.93147849]
[1766583341155,3.33625882,121.8,121.74,4.99147849]
[1766583343256,3.28,121.79,121.67,130.37865129]
[1766583343461,3.28,121.79,121.68,115.1239]
[1766583343462,0.0616601,121.74,121.68,115.1239]
[1766583343960,0.0616601,121.74,121.7,7.3994]
[1766583344159,0.0616601,121.74,121.67,115.1274]
[1766583344357,0.0616601,121.74,121.68,7.4004]
[1766583344548,0.06031606,121.72,121.68,7.4004]
[1766583344953,0.06031606,121.72,121.66,104.3619]
[1766583346162,3.34031606,121.72,121.66,7.4019]
[1766583346961,3.34031606,121.72,121.65,212.1312]
[1766583346962,3.34031606,121.72,121.67,7.4013]
[1766583347157,0.06031606,121.72,121.67,7.4013]
[1766583347459,116.97365758,121.82,121.7,115.1056]
[1766583347657,96.98,121.83,121.74,115.0672]
[1766583347850,96.98,121.83,121.75,96.98]
[1766583348253,0.06151003,121.8,121.78,0.05948868]
[1766583353668,3.28,121.84,121.78,0.05948868]
[1766583353867,3.28,121.86,121.77,115.036]
[1766583354556,3.28,121.86,121.79,7.394]
[1766583354753,3.28,121.86,121.81,0.06257852]
[1766583354754,0.0541755,121.84,121.81,0.06257852]
[1766583357366,3.28,121.83,121.81,0.00257852]
[1766583358069,10.6719,121.83,121.76,96.98]
[1766583359069,0.05988391,121.81,121.78,0.05924757]
[1766583362071,10.941,121.85,121.78,0.05924757]
[1766583362964,10.9398,121.87,121.78,0.05924757]
[1766583363169,0.05742448,121.84,121.81,0.05709321]
[1766583363671,10.9398,121.87,121.81,0.05709321]